Cogmind - Beta 9.6 @@@ ROGUE MODE // 2020.07.03 @ 15:38:01 Player: Kenzurith Result: Destroyed by 8R-AWN with 8R-AWN's Boregun Performance ------------- Evolutions (0) 0 Regions Visited (3) 600 Robots Destroyed (18) 90 Value Destroyed (230) 230 Prototype IDs (24) 480 Alien Tech Used (0) 0 Bonus (264) 264 TOTAL SCORE: 1664 Bonus ------- Aligned with FarCom 300 Friendly Fire -36 Cogmind --------- Core Integrity 0/250 Matter 16/300 Energy 100/100 System Corruption 1% Temperature Cool (0) Movement Walking (300) Ox6 Location -10/Exiles Parts ------- > --- POWER (1) -------- (None) > --- PROPULSION (2) --- Aluminum Leg > --- UTILITY (2) ------ High-capacity Storage Unit High-capacity Storage Unit > --- WEAPON (2) ------- (None) > --- INVENTORY (20) --- Light Treads Large Storage Unit High-capacity Storage Unit High-capacity Storage Unit Spread Laser Heavy Assault Rifle Light Cannon Light Cannon Light Cannon Grenade Launcher Peak State ------------ > --- POWER ------------ Ion Engine > --- PROPULSION ------- Light Treads Light Treads > --- UTILITY ---------- High-capacity Storage Unit High-capacity Storage Unit > --- WEAPON ----------- Heavy Assault Rifle Heavy Assault Rifle > --- INVENTORY -------- Reinforced Deuterium Engine Light Fission Core Light Fission Core Light Treads Aluminum Leg Aluminum Leg Large Storage Unit High-capacity Storage Unit High-capacity Storage Unit Spread Laser Heavy Assault Rifle Light Cannon Light Cannon Light Cannon Grenade Launcher [Rating: 11] Favorites ----------- Power Ion Engine Engine Ion Engine Propulsion Light Treads Treads Light Treads Leg Aluminum Leg Utility High-capacity Storage Unit Storage High-capacity Storage Unit Processor Targeting Computer Weapon Light Cannon Energy Gun Small Laser Ballistic Gun Heavy Assault Rifle Ballistic Cannon Light Cannon Build | -11 -10 -10 -10 ------- Run | Scr Mat Min Exi Slots Evolved . | . . . . Power . | . . . . Propulsion . | . . . . Utility . | . . . . Weapon . | . . . . Parts Attached 30 | 1 20 . 9 Power 2 | . 2 . . Engine 2 | . 2 . . Core . | . . . . Reactor . | . . . . Propulsion 5 | . 2 . 3 Treads 3 | . 2 . 1 Leg 2 | . . . 2 Wheel . | . . . . Hover . | . . . . Flight . | . . . . Utility 5 | . 5 . . Device . | . . . . Storage 4 | . 4 . . Processor 1 | . 1 . . Hackware . | . . . . Protection . | . . . . Artifact . | . . . . Weapon 18 | 1 11 . 6 Energy Gun . | . . . . Energy Cannon . | . . . . Ballistic Gun 10 | 1 5 . 4 Ballistic Cannon 8 | . 6 . 2 Launcher . | . . . . Special Weapon . | . . . . Impact Weapon . | . . . . Slashing Weapon . | . . . . Piercing Weapon . | . . . . Special Melee Weapon . | . . . . Unidentified Prototypes . | . . . . Parts Lost 6 | . . . 6 Power 1 | . . . 1 Propulsion 3 | . . . 3 Utility . | . . . . Weapon 2 | . . . 2 Highest Loss Streak 6 | . . . 6 Average Slot Usage (%) 97 | . 96 100 97 Engine 13 | . 14 14 13 Treads 15 | . . 28 26 Leg 12 | . 27 . . Storage 21 | . 14 28 28 Processor 4 | . 10 . . Ballistic Gun 5 | . 10 . 3 Ballistic Cannon 21 | . 16 28 24 Naked Turns . | . . . . Heaviest Build 75 | 9 75 75 75 Greatest Support 40 | 20 40 40 40 Greatest Overweight (x) 24 | . 3 1 24 Average Overweight (x) . | . . 1 1 Largest Inventory Capacity 20 | 6 20 20 20 Average Capacity 14 | 6 7 20 20 Most Carried 15 | 6 12 12 15 Average Carried 9 | 6 6 12 12 Final Capacity 20 | 6 20 20 20 Final Carried 12 | 6 12 12 10 Class Distribution -------------------- 56% | Hauler-Mutant 43% | Mutant Dominant Class ---------------- Mutant | -10/Materials Hauler-Mutant | -10/Mines Hauler-Mutant | -10/Exiles Resources | -11 -10 -10 -10 ----------- Run | Scr Mat Min Exi Matter Collected 570 | 200 273 73 24 Remotely . | . . . . Salvage Created 371 | . 347 . 24 Parts 26 | . 26 . . Haulers Intercepted 2 | . 2 . . Recyclers Shooed 2 | . 2 . . Parts Field Recycled . | . . . . Retrieved Matter . | . . . . Parts Self-Destructed . | . . . . Prevented . | . . . . Kills | -11 -10 -10 -10 ------- Run | Scr Mat Min Exi Combat Hostiles Destroyed 13 | . 9 . 4 Guns 6 | . 6 . . Cannons 7 | . 3 . 4 Classes Destroyed 7 | . 6 . 1 Builder 1 | . 1 . . Hauler 2 | . 2 . . Recycler 1 | . 1 . . Watcher 1 | . 1 . . Swarmer 5 | . 5 . . Grunt 4 | . 4 . . Assembled 4 | . . . 4 Best Kill Streak 4 | . 2 . 4 Combat Bots Only 4 | . 2 . 4 Max Kills in Single Turn 2 | . 2 . 1 Gunslinging . | . . . . Exploded . | . . . . Melee . | . . . . Uniques/NPCs Destroyed . | . . . . Combat | -11 -10 -10 -10 -------- Run | Scr Mat Min Exi Damage Taken 1212 | . 272 . 940 Core 254 | . 77 . 177 Absorbed by Shields . | . . . . Core Remaining (%) 100 | 100 . . . Volleys Fired 57 | . 41 . 16 Largest 2 | . 2 . 2 Hottest 75 | . 75 . 70 Shots Fired 112 | . 82 . 30 Gun 39 | . 29 . 10 Cannon 73 | . 53 . 20 Launcher . | . . . . Special . | . . . . Kinetic 105 | . 75 . 30 Thermal 7 | . 7 . . Explosive . | . . . . Electromagnetic . | . . . . Robot Hit Streak 14 | . 14 . 9 Robot Miss Streak 6 | . 6 . 3 Penetration Max . | . . . . Secondary Targets . | . . . . Shots Hit Robots 71 | . 51 . 20 Core Hits 27 | . 17 . 10 Critical Hits . | . . . . Critical Kills . | . . . . Critical Parts Destroyed . | . . . . Melee Attacks . | . . . . Impact . | . . . . Slashing . | . . . . Piercing . | . . . . Sneak Attacks . | . . . . Combat Hostiles . | . . . . Follow-up Attacks . | . . . . Damage Inflicted 1116 | . 797 . 319 Guns 368 | . 285 . 83 Cannons 748 | . 512 . 236 Explosions . | . . . . Melee . | . . . . Ramming . | . . . . Kinetic 1061 | . 742 . 319 Thermal 55 | . 55 . . Explosive . | . . . . Electromagnetic . | . . . . Impact . | . . . . Slashing . | . . . . Piercing . | . . . . Highest Corruption 1 | . 1 1 1 Average Corruption 1 | . 1 1 1 Corruption Purged . | . . . . Effects 8 | . 3 1 4 Message Errors 5 | . 3 . 2 Data Loss (minor) 3 | . . 1 2 Overload Shots . | . . . . Overflow Damage . | . . . . Projectiles . | . . . . Explosions . | . . . . Melee . | . . . . Knockbacks 3 | . 3 . . Impact . | . . . . Kinetic 3 | . 3 . . Secondary . | . . . . Self-Inflicted Damage . | . . . . Shots . | . . . . Rammed . | . . . . Targets Rammed . | . . . . Kicked . | . . . . Crushed . | . . . . Highest Temperature 159 | . 159 . 81 Average Temperature 37 | . 35 . 44 Received Heat Transfer 69 | . 69 . . Siege Activations . | . . . . Robots Corrupted . | . . . . Combat Hostiles . | . . . . Parts Fried . | . . . . Impact Corruptions . | . . . . Robots Melted . | . . . . Combat Hostiles . | . . . . Parts Melted . | . . . . Heat Transferred 125 | . 125 . . Parts Sabotaged . | . . . . Parts Stolen . | . . . . Parts Stripped . | . . . . Power Chain Reactions . | . . . . Missiles Intercepted . | . . . . Alert | -11 -10 -10 -10 ------- Run | Scr Mat Min Exi Peak Influence 235 | . 235 48 . Average Influence 83 | . 93 48 . Maximum Alert Level 1 | . 1 . . Low Security (%) 96 | 100 95 100 . Level 1 3 | . 4 . . Level 2 . | . . . . Level 3 . | . . . . Level 4 . | . . . . Level 5 . | . . . . High Security . | . . . . Max Security . | . . . . Squads Dispatched 1 | . 1 . . Investigation 1 | . 1 . . Extermination . | . . . . Reinforcement . | . . . . Assault . | . . . . Garrison . | . . . . Intercept . | . . . . Construction Impeded . | . . . . Haulers Reinforced . | . . . . Stealth | -11 -10 -10 -10 --------- Run | Scr Mat Min Exi Distress Signals 4 | . 4 . . Communications Jammed . | . . . . Distress Signals . | . . . . Times Spotted 29 | . 21 . 8 Peak Tracking Total 9 | . 6 . 9 Tactical Retreats 6 | . 6 . . Traps | -11 -10 -10 -10 ------- Run | Scr Mat Min Exi Traps Triggered 2 | . 2 . . Indirectly . | . . . . Trap Hack Attempts . | . . . . Triggered . | . . . . Disarmed . | . . . . Reprogrammed . | . . . . Reused . | . . . . Traps Extracted . | . . . . Installed . | . . . . Triggered . | . . . . Exploded 3 | . . . 3 Machines | -11 -10 -10 -10 ---------- Run | Scr Mat Min Exi Machines Disabled 2 | . . . 2 Max in Single Turn 1 | . . . 1 Machines Sabotaged . | . . . . Garrisons Compromised . | . . . . Overloaded Fab Kills . | . . . . Fab Network Shutdowns . | . . . . Hacking | -11 -10 -10 -10 --------- Run | Scr Mat Min Exi Machines Accessed 9 | . 7 . 2 Terminals 6 | . 6 . . Fabricators . | . . . . Repair Stations 1 | . 1 . . Recycling Units . | . . . . Scanalyzers . | . . . . Garrison Access . | . . . . Total Hacks 31 | . 29 . 2 Successful 19 | . 17 . 2 Failed 12 | . 12 . . Catastrophic . | . . . . Database Lockouts . | . . . . Manual 15 | . 14 . 1 Terminals 26 | . 26 . . Fabricators . | . . . . Repair Stations 3 | . 3 . . Recycling Units . | . . . . Scanalyzers . | . . . . Garrison Access . | . . . . Terminal Hacks 14 | . 12 . 2 Record 2 | . 1 . 1 Robot Analysis 5 | . 5 . . Prototype ID Bank 1 | . 1 . . Locate Traps 1 | . 1 . . Dispatch Records 1 | . 1 . . Maintenance Status 1 | . 1 . . Zone Layout 2 | . 2 . . EX-Prototype ID Bank 1 | . . . 1 Fabricator Hacks . | . . . . Repair Station Hacks 2 | . 2 . . Scan Component 1 | . 1 . . Repair 1 | . 1 . . Recycling Unit Hacks . | . . . . Scanalyzer . | . . . . Garrison Access Hacks . | . . . . Unauthorized Hacks 3 | . 3 . . Terminals 3 | . 3 . . Botnet 3 | . 3 . . Fabricators . | . . . . Repair Stations . | . . . . Recycling Units . | . . . . Scanalyzers . | . . . . Garrison Access . | . . . . Data Cores Recovered . | . . . . Used . | . . . . Hacking Detections 6 | . 6 . . Full Trace Events . | . . . . Feedback Events . | . . . . Feedback Blocked . | . . . . Robot Schematics Acquired . | . . . . Robots Built . | . . . . Matter . | . . . . Time . | . . . . Total Robot Build Rating . | . . . . Part Schematics Acquired . | . . . . Parts Built . | . . . . Matter . | . . . . Time . | . . . . Total Part Build Rating . | . . . . Parts Repaired 1 | . 1 . . Time 26 | . 26 . . Parts Recycled . | . . . . Recycled Matter . | . . . . Retrieved Matter . | . . . . Retrieved Components . | . . . . Parts Scanalyzed . | . . . . Part Schematics Acquired . | . . . . Parts Damaged . | . . . . Bothacking | -11 -10 -10 -10 ------------ Run | Scr Mat Min Exi Used RIF Installer . | . . . . Robots Hacked . | . . . . Non-combat . | . . . . Combat . | . . . . Robot Hacks Applied . | . . . . Relay Couplers Released . | . . . . Robots Rewired . | . . . . Allies Hacked . | . . . . Hacks Repelled . | . . . . Allies | -11 -10 -10 -10 -------- Run | Scr Mat Min Exi Total Allies . | . . . . Largest Group . | . . . . Highest-Rated Group . | . . . . Highest-Rated Ally . | . . . . Total Orders . | . . . . Ally Attacks . | . . . . Total Damage . | . . . . Kills . | . . . . Allies Corrupted . | . . . . Allies Melted . | . . . . Intel | -11 -10 -10 -10 ------- Run | Scr Mat Min Exi Robot Analysis Total 5 | . 5 . . Derelict Logs Recovered . | . . . . Drone Launches . | . . . . Drone Recoveries . | . . . . Exploration | -11 -10 -10 -10 ------------- Run | Scr Mat Min Exi Turns Passed 2295 | 4 1024 284 983 Spaces Moved 1248 | 3 592 154 499 Core 1 | . . . 1 Treads 646 | . 7 154 485 Legs 601 | 3 585 . 13 Wheels . | . . . . Hover . | . . . . Flight . | . . . . Fastest Speed 120 | 120 120 180 180 Average Speed 155 | 120 125 180 184 Slowest Speed 1250 | 120 210 180 1250 Overloaded Moves . | . . . . Propulsion Burnouts . | . . . . Robots Hopped . | . . . . Cave-ins Triggered . | . . . . Exploration Rate (%) 46 | 2 89 43 52 Regions Visited 3 Branch Regions 2 Pre-discovered Areas 1 | . . . 1 Known Exits Taken . | . . . . Unknown Exits Taken 3 | 1 1 1 . Scrap Searched 1 | . . 1 . Spaces Dug . | . . . . Terrain Destroyed . | . . . . Melee . | . . . . Projectile . | . . . . AOE . | . . . . Actions | -11 -10 -10 -10 --------- Run | Scr Mat Min Exi Total 1487 | 3 792 161 531 Wait 123 | . 115 8 . Move 1245 | 2 591 153 499 Hop . | . . . . Pick Up 15 | . 12 . 3 Fast Attach 5 | . 5 . . Attach 3 | . . . 3 Detach 2 | . 1 . 1 Swap 22 | 1 15 . 6 Drop 15 | . 12 . 3 Fire 57 | . 41 . 16 Melee . | . . . . Ram . | . . . . Kick . | . . . . Crush . | . . . . Escape Stasis . | . . . . Rewire . | . . . . Trap . | . . . . Miscellaneous . | . . . . Route ------- -11/Scrapyard -10/Materials (discovered 5 exits: [*Mat x3] / [*Min x2]) -10/Mines (discovered 2 exits: [*Mat] / *Exi) -10/Exiles History --------- Turn | Location | Event 1 | -11/Scrapyard | Discovered new exit (range 3) 5 | -11/Scrapyard | Entered Materials 5 | -10/Materials | Discovered new exit (range 7) 206 | -10/Materials | Discovered new exit (range 15) 314 | -10/Materials | Build established: Mutant 344 | -10/Materials | Discovered new exit (range 16) 567 | -10/Materials | Discovered new exit (range 5) 646 | -10/Materials | Repaired Lgt. Cannon 670 | -10/Materials | Discovered new exit (range 16) 1029 | -10/Materials | Entered Mines 1196 | -10/Mines | Discovered new exit (range 11) 1302 | -10/Mines | Build established: Hauler-Mutant 1304 | -10/Mines | Deemed a non-threat by the Exiles lab entrance 1306 | -10/Mines | Discovered new exit (range 5) 1313 | -10/Mines | Entered Exiles 1358 | -10/Exiles | Met 8R-AWN 1391 | -10/Exiles | Met EX-HEX 1461 | -10/Exiles | Met EX-DEC 1468 | -10/Exiles | Learned location of Zion (-6) 1511 | -10/Exiles | Met EX-BIN 2058 | -10/Exiles | Aligned with FarCom system 2060 | -10/Exiles | Given EX-Vault access code 2101 | -10/Exiles | Opened EX-Vault 2156 | -10/Exiles | Warned to stay clear of 0b10 Research branches 2163 | -10/Exiles | Attacked by the Exiles 2249 | -10/Exiles | Core integrity fell below 50% 2262 | -10/Exiles | Core integrity fell below 20% 2296 | -10/Exiles | Destroyed by 8R-AWN with 8R-AWN's Boregun Last Messages --------------- 02263_ Penetrated by HV Slug. 02263_ HV Slug penetrates Wall. 02263_ Penetrated by HV Slug. 02263_ HV Slug penetrates Wall. 02264_ Acquired 6 matter. 02266_ Penetrated by HV Slug. 02266_ HV Slug penetrates Wall. 02266_ Penetrated by HV Slug. 02266_ HV Slug penetrates Wall. 02270_ Penetrated by HV Slug. 02270_ HV Slug penetrates Wall. 02273_ Penetrated by HV Slug. 02273_ Critical hit. 02273_ Aluminum Leg destroyed. 02275_ Penetrated by HV Slug. 02279_ Critical hit. 02279_ Hvy. Assault Rifle destroyed. 02279_ Penetrated by HV Slug. 02290_ HV Slug penetrates Wall. 02296_ Penetrated by HV Slug. Map ----- +----------------------------------------------------+ | | | | | | | | | | | | | | | | | | | | | | | | | | | | | | | | | | | | | | | | | | | | | | | | | ?????????????????????#########???????????????????? | | ?????????????????????# @ #???????????????????? | | ?????????????????????# ! #???????????????????? | | ?????????????????????# [ #???????????????????? | | ?????????????????????# X#???????????????????? | | ?????????????????????## ##???????????????????? | | ?????????????????????#X #????????????????????? | | ?????????????????????## #????????????????????? | | ??????????????????????# #????????????????????? | | ??????????????????????# #########????????????? | | ??????????????????????# g## """" #????????????? | | ??????????????????????# ## "#????????????? | | ??????????????????????# #????????????? | | ??????????????????????# #" """#????????????? | | ????????????????####??# ## ""#????????????? | | ???????????????""""""?# #########????????????? | | ???????????????"""" ## #????????????????????? | | ??????????????#""X" #????????????????????? | | ??????????????#" "????????????????????? | | ??????????????#" ## "????????????????????? | | ??????????????#""""""?# "?#########??????????? | | ??????????????##"###??# ?#"""""""#??????????? | | ??????????????? ??????# ?#"""""""#??????????? | | ??????????????????????# %"?#"""""""#??????????? | | ?????????????????????## ##"" """"#??????????? | | ?????????????????????#" """"#??????????? | +----------------------------------------------------+ Best States ------------- Heat Dissipation 25 Energy Generation 10 Energy Capacity 250 Matter Stores 300 Matter Capacity 300 Sight Range 16 Terrain Scan Density 10 Evasion (%) 40 Targeting Accuracy 5 Recoil Reduction 2 Item Schematics ----------------- None Robot Schematics ------------------ None Fabricated ------------ Nothing Alien Tech Used ----------------- None Achievements -------------- None Challenges ------------ None Game ------ Seed PhaseTacticalJammer Manual? 0 Play Time 00:21:48 Cumulative 177.5 hours Start 2020.07.03 @ 15:14:00 End 2020.07.03 @ 15:38:01 Sessions 1 Manual Loads 0 Difficulty Rogue Special Mode None Game No. 101 Rogue 99 Adventurer 1 Explorer 1 Win Type - Total 2 Types 2/0/0/0/0/0/0 Lore% 62 Gallery% 75 Achievement% 55 Wizard Run 0 Options --------- ASCII 0 Keyboard 1 Movement Numpad Keybinds 1 Fullscreen 2 Font 24/Terminus Map View 76x50 Tactical HUD 1 Map Filters NONE Filters NONE Steam 1 RUN: 29cef63d-1455-45d5-a587-2d938eb78c66